[Event "*** Titled Tuesday Blitz"]
[Site "Chess.com"]
[Date "2018.04.03"]
[Round "6"]
[White "DiogenesSinopeus"]
[Black "Rodalquilar"]
[Result "0-1"]
[WhiteElo "2417"]
[BlackElo "2444"]
[TimeControl "180+2"]
[EndTime "14:16:29 PDT"]
[Termination "Rodalquilar won by resignation"]

1. d4 {[%clk 0:03:01.9]} 1... d5 {[%clk 0:02:58]} 2. c4 {[%clk 0:03:03]} 2...
dxc4 {[%clk 0:02:59.9]} 3. e4 {[%clk 0:03:03.7]} 3... e5 {[%clk 0:03:00.7]} 4.
Nf3 {[%clk 0:03:04.6]} 4... exd4 {[%clk 0:03:02.2]} 5. Bxc4 {[%clk 0:03:05.7]}
5... Nc6 {[%clk 0:03:03.7]} 6. O-O {[%clk 0:03:06.3]} 6... Be6 {[%clk 0:03:05]}
7. Bxe6 {[%clk 0:03:06.8]} 7... fxe6 {[%clk 0:03:06.9]} 8. Qb3 {[%clk
0:03:06.9]} 8... Qd7 {[%clk 0:03:08.2]} 9. Qxb7 {[%clk 0:03:06.9]} 9... Rb8
{[%clk 0:03:09.6]} 10. Qa6 {[%clk 0:03:08.5]} 10... Nf6 {[%clk 0:03:11.5]} 11.
Nbd2 {[%clk 0:03:06]} 11... Bb4 {[%clk 0:03:12.5]} 12. Qd3 {[%clk 0:02:41.2]}
12... Bxd2 {[%clk 0:03:10.5]} 13. Bxd2 {[%clk 0:02:43.1]} 13... Rxb2 {[%clk
0:03:09.5]} 14. Rfc1 {[%clk 0:02:23.2]} 14... O-O {[%clk 0:03:06.4]} 15. Rc4
{[%clk 0:02:17.2]} 15... Ng4 {[%clk 0:03:02.7]} 16. Be1 {[%clk 0:01:19.3]} 16...
Qd6 {[%clk 0:02:52.8]} 17. Rxc6 {[%clk 0:00:21.5]} 17... Qxc6 {[%clk 0:02:41]}
18. Qxd4 {[%clk 0:00:22.5]} 18... Qc2 {[%clk 0:02:22.1]} 19. h3 {[%clk
0:00:18.7]} 19... Nf6 {[%clk 0:02:22.5]} 20. Bc3 {[%clk 0:00:16]} 20... Rb1+
{[%clk 0:02:23.4]} 21. Rxb1 {[%clk 0:00:12]} 21... Qxb1+ {[%clk 0:02:25.3]} 22.
Kh2 {[%clk 0:00:13.7]} 22... Qxe4 {[%clk 0:02:26.4]} 23. Qc5 {[%clk 0:00:05.6]}
23... Qf4+ {[%clk 0:02:23.2]} 24. Kg1 {[%clk 0:00:05.4]} 24... Ne4 {[%clk
0:02:16.5]} 25. Qc4 {[%clk 0:00:03]} 25... Qc1+ {[%clk 0:02:12.6]} 26. Kh2
{[%clk 0:00:04.4]} 26... Nxc3 {[%clk 0:02:13.3]} 27. Qxe6+ {[%clk 0:00:05.8]}
27... Kh8 {[%clk 0:02:14.8]} 28. Ne5 {[%clk 0:00:06.2]} 28... Qf4+ {[%clk
0:02:15.8]} 29. Kh1 {[%clk 0:00:07.7]} 29... Ne4 {[%clk 0:02:14.1]} 30. Nf7+
{[%clk 0:00:07.4]} 30... Qxf7 {[%clk 0:02:14.6]} 0-1

[Event "*** Titled Tuesday Blitz"]
[Site "Chess.com"]
[Date "2018.04.03"]
[Round "6"]
[White "lachesisQ"]
[Black "temiksmozg"]
[Result "1-0"]
[WhiteElo "2914"]
[BlackElo "2552"]
[TimeControl "180+2"]
[EndTime "14:16:30 PDT"]
[Termination "lachesisQ won by resignation"]

1. e4 {[%clk 0:02:58.5]} 1... e6 {[%clk 0:03:00.9]} 2. d4 {[%clk 0:02:59.1]}
2... d5 {[%clk 0:03:02.3]} 3. Nc3 {[%clk 0:03:01]} 3... Bb4 {[%clk 0:03:02.7]}
4. e5 {[%clk 0:03:01.8]} 4... Qd7 {[%clk 0:03:04.1]} 5. a3 {[%clk 0:03:01.1]}
5... Bxc3+ {[%clk 0:03:05.4]} 6. bxc3 {[%clk 0:03:03]} 6... b6 {[%clk
0:03:06.8]} 7. Qg4 {[%clk 0:03:03.3]} 7... f5 {[%clk 0:03:08]} 8. exf6 {[%clk
0:02:50]} 8... Nxf6 {[%clk 0:03:07.5]} 9. Qh4 {[%clk 0:02:51.3]} 9... Ba6 {[%clk
0:02:56.8]} 10. Bd3 {[%clk 0:02:51.8]} 10... Bxd3 {[%clk 0:02:52.6]} 11. cxd3
{[%clk 0:02:52.3]} 11... Nc6 {[%clk 0:02:50.5]} 12. Nf3 {[%clk 0:02:52.3]} 12...
O-O-O {[%clk 0:02:48.9]} 13. O-O {[%clk 0:02:53]} 13... h6 {[%clk 0:02:49.3]}
14. Ne5 {[%clk 0:02:50.2]} 14... Nxe5 {[%clk 0:02:47.2]} 15. dxe5 {[%clk
0:02:52.1]} 15... Ng8 {[%clk 0:02:47.6]} 16. a4 {[%clk 0:02:49.7]} 16... a5
{[%clk 0:02:47.8]} 17. Ba3 {[%clk 0:02:48.2]} 17... g5 {[%clk 0:02:45.3]} 18.
Qh3 {[%clk 0:02:08.3]} 18... h5 {[%clk 0:02:02.9]} 19. c4 {[%clk 0:01:53.4]}
19... g4 {[%clk 0:01:59.3]} 20. Qe3 {[%clk 0:01:52]} 20... dxc4 {[%clk
0:01:34.3]} 21. dxc4 {[%clk 0:01:53]} 21... Qd3 {[%clk 0:01:27]} 22. Qc1 {[%clk
0:01:46]} 22... Nh6 {[%clk 0:00:58.5]} 23. c5 {[%clk 0:01:46.8]} 23... b5 {[%clk
0:00:59.7]} 24. axb5 {[%clk 0:01:47.4]} 24... Qxb5 {[%clk 0:01:01.6]} 25. c6
{[%clk 0:01:46]} 25... Rd3 {[%clk 0:00:51.3]} 26. Rb1 {[%clk 0:01:40.6]} 26...
Qd5 {[%clk 0:00:50.3]} 27. Qb2 {[%clk 0:01:37.3]} 27... Qxc6 {[%clk 0:00:50.1]}
28. Qb8+ {[%clk 0:01:38.1]} 28... Kd7 {[%clk 0:00:51.2]} 29. Qxh8 {[%clk
0:01:40]} 29... Nf5 {[%clk 0:00:50.5]} 30. Rb8 {[%clk 0:01:39.1]} 1-0

[Event "*** Titled Tuesday Blitz"]
[Site "Chess.com"]
[Date "2018.04.03"]
[Round "6"]
[White "Koksik_13"]
[Black "Jospem"]
[Result "0-1"]
[WhiteElo "2479"]
[BlackElo "2738"]
[TimeControl "180+2"]
[EndTime "14:16:39 PDT"]
[Termination "Jospem won on time"]

1. e4 {[%clk 0:02:51]} 1... c5 {[%clk 0:02:59.8]} 2. Nf3 {[%clk 0:02:51.1]} 2...
d6 {[%clk 0:03:00.8]} 3. Bb5+ {[%clk 0:02:51.4]} 3... Nd7 {[%clk 0:03:00.2]} 4.
d4 {[%clk 0:02:51.8]} 4... cxd4 {[%clk 0:03:00.6]} 5. Qxd4 {[%clk 0:02:53.7]}
5... a6 {[%clk 0:03:02.2]} 6. Bxd7+ {[%clk 0:02:54.2]} 6... Bxd7 {[%clk
0:03:04.1]} 7. c4 {[%clk 0:02:55.7]} 7... e5 {[%clk 0:03:04.9]} 8. Qd3 {[%clk
0:02:56.5]} 8... Rc8 {[%clk 0:03:06]} 9. Nc3 {[%clk 0:02:57.8]} 9... h6 {[%clk
0:03:04.7]} 10. O-O {[%clk 0:02:57.7]} 10... Qc7 {[%clk 0:03:00.8]} 11. Nd2
{[%clk 0:02:56.3]} 11... Nf6 {[%clk 0:03:00.2]} 12. b3 {[%clk 0:02:51.7]} 12...
b5 {[%clk 0:02:58.5]} 13. Bb2 {[%clk 0:02:52]} 13... Qb7 {[%clk 0:02:56.9]} 14.
Rfd1 {[%clk 0:02:45.2]} 14... Be7 {[%clk 0:02:54.5]} 15. f3 {[%clk 0:02:42.4]}
15... O-O {[%clk 0:02:50.7]} 16. Nd5 {[%clk 0:02:41.9]} 16... Nxd5 {[%clk
0:02:50.9]} 17. cxd5 {[%clk 0:02:42.7]} 17... Bd8 {[%clk 0:02:48]} 18. Rac1
{[%clk 0:02:41.5]} 18... Bb6+ {[%clk 0:02:49.3]} 19. Kh1 {[%clk 0:02:42.6]}
19... f5 {[%clk 0:02:48.6]} 20. h3 {[%clk 0:02:37.4]} 20... f4 {[%clk
0:02:46.9]} 21. Rxc8 {[%clk 0:02:36.7]} 21... Qxc8 {[%clk 0:02:46.1]} 22. Rc1
{[%clk 0:02:36.6]} 22... Qd8 {[%clk 0:02:44.3]} 23. Ba3 {[%clk 0:02:36.1]} 23...
Rf6 {[%clk 0:02:44.9]} 24. Nf1 {[%clk 0:02:28.9]} 24... Rg6 {[%clk 0:02:43.7]}
25. Qd2 {[%clk 0:02:06.7]} 25... Qh4 {[%clk 0:02:35]} 26. Kh2 {[%clk 0:02:02.9]}
26... Bxh3 {[%clk 0:02:14.6]} 27. Qe1 {[%clk 0:00:27.5]} 27... Bf2 {[%clk
0:02:04.9]} 0-1

[Event "*** Titled Tuesday Blitz"]
[Site "Chess.com"]
[Date "2018.04.03"]
[Round "6"]
[White "Albertu"]
[Black "Slovak_fighter2000"]
[Result "1-0"]
[WhiteElo "2249"]
[BlackElo "2355"]
[TimeControl "180+2"]
[EndTime "14:16:44 PDT"]
[Termination "Albertu won by resignation"]

1. e4 {[%clk 0:03:01.9]} 1... e6 {[%clk 0:02:52.4]} 2. d4 {[%clk 0:03:01.3]}
2... d5 {[%clk 0:02:53.9]} 3. Nc3 {[%clk 0:03:02.6]} 3... Nf6 {[%clk 0:02:54.2]}
4. Bg5 {[%clk 0:03:02.7]} 4... dxe4 {[%clk 0:02:55.5]} 5. Nxe4 {[%clk
0:03:03.2]} 5... Be7 {[%clk 0:02:56.9]} 6. Bxf6 {[%clk 0:03:04.3]} 6... gxf6
{[%clk 0:02:58]} 7. Nf3 {[%clk 0:03:05.7]} 7... f5 {[%clk 0:02:57]} 8. Ng3
{[%clk 0:03:06]} 8... c5 {[%clk 0:02:54.7]} 9. dxc5 {[%clk 0:03:05.9]} 9...
Qxd1+ {[%clk 0:02:51.6]} 10. Rxd1 {[%clk 0:03:06.2]} 10... Bxc5 {[%clk
0:02:53.4]} 11. Bb5+ {[%clk 0:03:02.6]} 11... Bd7 {[%clk 0:02:50]} 12. Bxd7+
{[%clk 0:03:02.5]} 12... Nxd7 {[%clk 0:02:46.1]} 13. O-O {[%clk 0:03:03.8]}
13... O-O-O {[%clk 0:02:36.1]} 14. Rd2 {[%clk 0:02:58.7]} 14... Be7 {[%clk
0:02:18.6]} 15. Rfd1 {[%clk 0:02:54.2]} 15... Bf6 {[%clk 0:02:15.6]} 16. c3
{[%clk 0:02:55.5]} 16... Ne5 {[%clk 0:02:13.4]} 17. Nxe5 {[%clk 0:02:28.9]}
17... Bxe5 {[%clk 0:02:12]} 18. Ne2 {[%clk 0:02:17.6]} 18... Rxd2 {[%clk
0:02:10.4]} 19. Rxd2 {[%clk 0:02:17.5]} 19... Rd8 {[%clk 0:02:12.3]} 20. Rxd8+
{[%clk 0:02:17]} 20... Kxd8 {[%clk 0:02:14.2]} 21. f4 {[%clk 0:02:18.1]} 21...
Bf6 {[%clk 0:02:12.5]} 22. Kf2 {[%clk 0:02:19.3]} 22... Kd7 {[%clk 0:02:12.1]}
23. Ke3 {[%clk 0:02:19.5]} 23... Kd6 {[%clk 0:02:13.3]} 24. Ng1 {[%clk
0:02:16.4]} 24... Kd5 {[%clk 0:02:09.7]} 25. Kd3 {[%clk 0:02:15.1]} 25... b5
{[%clk 0:02:11.1]} 26. Nf3 {[%clk 0:02:15]} 26... a5 {[%clk 0:02:07.2]} 27. b3
{[%clk 0:02:10.6]} 27... a4 {[%clk 0:01:54.2]} 28. c4+ {[%clk 0:01:43.4]} 28...
bxc4+ {[%clk 0:01:47]} 29. bxc4+ {[%clk 0:01:43.2]} 29... Kc5 {[%clk 0:01:48.4]}
30. Ne5 {[%clk 0:01:40.2]} 30... Kb4 {[%clk 0:01:45.3]} 31. Nxf7 {[%clk
0:01:31.8]} 31... Ka3 {[%clk 0:01:42.6]} 32. c5 {[%clk 0:01:31.9]} 32... Kxa2
{[%clk 0:01:15.1]} 33. c6 {[%clk 0:01:32.3]} 33... Kb1 {[%clk 0:01:16.2]} 34. c7
{[%clk 0:01:32.8]} 34... Bb2 {[%clk 0:01:17.6]} 35. c8=Q {[%clk 0:01:32.7]}
35... a3 {[%clk 0:01:18.5]} 36. Qc2+ {[%clk 0:01:31.2]} 36... Ka1 {[%clk
0:01:19.4]} 37. Kc4 {[%clk 0:01:24.8]} 37... h5 {[%clk 0:01:20.7]} 38. Kb3
{[%clk 0:01:25.6]} 1-0

[Event "*** Titled Tuesday Blitz"]
[Site "Chess.com"]
[Date "2018.04.03"]
[Round "6"]
[White "Entilza"]
[Black "AndrewMcStone"]
[Result "1-0"]
[WhiteElo "2190"]
[BlackElo "2077"]
[TimeControl "180+2"]
[EndTime "14:16:46 PDT"]
[Termination "Entilza won by resignation"]

1. d4 {[%clk 0:03:01.9]} 1... Nf6 {[%clk 0:02:57.6]} 2. c4 {[%clk 0:03:02.8]}
2... Nc6 {[%clk 0:02:58.1]} 3. Nc3 {[%clk 0:03:02.2]} 3... e5 {[%clk 0:02:58.6]}
4. Nf3 {[%clk 0:02:48.7]} 4... e4 {[%clk 0:02:57.3]} 5. Ng5 {[%clk 0:02:48.3]}
5... Bb4 {[%clk 0:02:58.4]} 6. g3 {[%clk 0:02:42.6]} 6... h6 {[%clk 0:02:56.4]}
7. Nh3 {[%clk 0:02:42.1]} 7... d5 {[%clk 0:02:56.1]} 8. cxd5 {[%clk 0:02:36.7]}
8... Qxd5 {[%clk 0:02:55.9]} 9. e3 {[%clk 0:02:30.3]} 9... Bg4 {[%clk
0:02:42.5]} 10. Qc2 {[%clk 0:02:23.7]} 10... Nxd4 {[%clk 0:02:28.3]} 11. exd4
{[%clk 0:02:10.1]} 11... e3 {[%clk 0:02:27.4]} 12. Qa4+ {[%clk 0:02:04]} 12...
c6 {[%clk 0:02:16.5]} 13. Qxb4 {[%clk 0:02:00.1]} 13... Qxh1 {[%clk 0:02:12.9]}
14. Bxe3 {[%clk 0:01:37.2]} 14... Bxh3 {[%clk 0:02:06.4]} 15. Ke2 {[%clk
0:01:38.1]} 15... Bg4+ {[%clk 0:02:00.2]} 16. Kd2 {[%clk 0:01:38.5]} 16... O-O-O
{[%clk 0:01:45]} 17. Ba6 {[%clk 0:01:34]} 17... c5 {[%clk 0:01:38.6]} 18. Qxc5+
{[%clk 0:01:34.7]} 18... Kb8 {[%clk 0:01:15]} 19. Rxh1 {[%clk 0:01:30]} 19...
bxa6 {[%clk 0:01:15.9]} 20. Bf4+ {[%clk 0:01:24.7]} 20... Kb7 {[%clk 0:01:12.8]}
21. Re1 {[%clk 0:01:21.3]} 21... Rd7 {[%clk 0:01:09.7]} 22. Re7 {[%clk
0:01:18.4]} 22... Rd8 {[%clk 0:01:10.2]} 23. Qb4+ {[%clk 0:01:16.5]} 23... Ka8
{[%clk 0:01:05.5]} 24. Rxd7 {[%clk 0:01:12.7]} 24... Bxd7 {[%clk 0:01:05.7]} 25.
Qe7 {[%clk 0:01:03.8]} 25... Re8 {[%clk 0:00:51.2]} 26. Qxf7 {[%clk 0:01:04.5]}
1-0

[Event "*** Titled Tuesday Blitz"]
[Site "Chess.com"]
[Date "2018.04.03"]
[Round "6"]
[White "ilmago"]
[Black "Karina_Oparina"]
[Result "1-0"]
[WhiteElo "1927"]
[BlackElo "2129"]
[TimeControl "180+2"]
[EndTime "14:16:49 PDT"]
[Termination "ilmago won by resignation"]

1. e4 {[%clk 0:03:01.9]} 1... c6 {[%clk 0:03:00.6]} 2. d4 {[%clk 0:03:01.7]}
2... d5 {[%clk 0:03:01.6]} 3. exd5 {[%clk 0:03:02.2]} 3... cxd5 {[%clk
0:03:02.6]} 4. c3 {[%clk 0:03:03.7]} 4... Nc6 {[%clk 0:03:02.5]} 5. Nf3 {[%clk
0:03:03.5]} 5... Bg4 {[%clk 0:03:01.7]} 6. Bf4 {[%clk 0:03:02.6]} 6... e6 {[%clk
0:02:57.9]} 7. Nbd2 {[%clk 0:03:02.9]} 7... Bd6 {[%clk 0:02:55]} 8. Bxd6 {[%clk
0:03:03.7]} 8... Qxd6 {[%clk 0:02:55.6]} 9. Qb3 {[%clk 0:03:05.2]} 9... Qc7
{[%clk 0:02:54.7]} 10. h3 {[%clk 0:03:04.5]} 10... Bxf3 {[%clk 0:02:52.2]} 11.
Nxf3 {[%clk 0:03:05]} 11... Nge7 {[%clk 0:02:52.5]} 12. Bb5 {[%clk 0:03:03.5]}
12... O-O {[%clk 0:02:52.8]} 13. O-O {[%clk 0:03:03.4]} 13... a6 {[%clk
0:02:48]} 14. Bd3 {[%clk 0:03:03.3]} 14... b5 {[%clk 0:02:48.2]} 15. Qc2 {[%clk
0:03:01.3]} 15... Ng6 {[%clk 0:02:43.7]} 16. Rfe1 {[%clk 0:03:01.3]} 16... Rfc8
{[%clk 0:02:40.3]} 17. h4 {[%clk 0:02:59.1]} 17... Nb4 {[%clk 0:02:38]} 18. Qd2
{[%clk 0:02:45.8]} 18... Nxd3 {[%clk 0:02:36.7]} 19. Qxd3 {[%clk 0:02:46.9]}
19... Nf4 {[%clk 0:02:23.8]} 20. Qe3 {[%clk 0:02:44.8]} 20... h6 {[%clk
0:02:16.3]} 21. Ne5 {[%clk 0:02:44.7]} 21... Nh5 {[%clk 0:02:10.4]} 22. Nd3
{[%clk 0:02:45.2]} 22... Nf6 {[%clk 0:02:06.3]} 23. f3 {[%clk 0:02:42]} 23...
Qg3 {[%clk 0:02:02.8]} 24. Qf4 {[%clk 0:02:35.9]} 24... Qxf4 {[%clk 0:01:55.9]}
25. Nxf4 {[%clk 0:02:37.8]} 25... b4 {[%clk 0:01:54.5]} 26. cxb4 {[%clk
0:02:32.3]} 26... Rc4 {[%clk 0:01:54.1]} 27. a3 {[%clk 0:02:25.9]} 27... Rxd4
{[%clk 0:01:53.7]} 28. Rac1 {[%clk 0:02:26.1]} 28... Rxf4 {[%clk 0:01:53.5]} 29.
Rc7 {[%clk 0:02:23.3]} 29... Rc4 {[%clk 0:01:52.4]} 30. Rc1 {[%clk 0:02:22.3]}
30... Rxc1+ {[%clk 0:01:49.5]} 31. Rxc1 {[%clk 0:02:24.2]} 31... d4 {[%clk
0:01:49.5]} 32. Kf2 {[%clk 0:02:23.8]} 32... Rd8 {[%clk 0:01:48.8]} 33. Ke2
{[%clk 0:02:24.7]} 33... Nd5 {[%clk 0:01:48.6]} 34. g3 {[%clk 0:02:23.4]} 34...
Ne3 {[%clk 0:01:45.3]} 35. Kd3 {[%clk 0:02:23.3]} 35... Nf5 {[%clk 0:01:43.9]}
36. Rc6 {[%clk 0:02:17.5]} 36... Nxg3 {[%clk 0:01:39.2]} 37. Rxa6 {[%clk
0:02:18.1]} 37... Nh5 {[%clk 0:01:38.6]} 38. b5 {[%clk 0:02:16.2]} 38... Nf4+
{[%clk 0:01:39.5]} 39. Kd2 {[%clk 0:02:17.7]} 39... d3 {[%clk 0:01:34.5]} 40. b6
{[%clk 0:02:18.6]} 40... Nd5 {[%clk 0:01:28.9]} 41. b7 {[%clk 0:02:19.5]} 41...
Nc7 {[%clk 0:01:09.3]} 42. Rc6 {[%clk 0:02:19.7]} 42... Ne8 {[%clk 0:00:47.3]}
43. Rc8 {[%clk 0:02:18.7]} 1-0

[Event "*** Titled Tuesday Blitz"]
[Site "Chess.com"]
[Date "2018.04.03"]
[Round "6"]
[White "RitvarsReimanis"]
[Black "TrimitziosP7"]
[Result "0-1"]
[WhiteElo "2380"]
[BlackElo "2609"]
[TimeControl "180+2"]
[EndTime "14:17:05 PDT"]
[Termination "TrimitziosP7 won by resignation"]

1. d4 {[%clk 0:03:01.9]} 1... d5 {[%clk 0:03:00.7]} 2. c4 {[%clk 0:02:53.9]}
2... c6 {[%clk 0:03:01.7]} 3. Nf3 {[%clk 0:02:54.3]} 3... Nf6 {[%clk 0:03:02.6]}
4. e3 {[%clk 0:02:55.5]} 4... a6 {[%clk 0:03:03.8]} 5. Bd2 {[%clk 0:02:56.1]}
5... b5 {[%clk 0:03:04.6]} 6. cxd5 {[%clk 0:02:56]} 6... cxd5 {[%clk 0:03:05.5]}
7. a4 {[%clk 0:02:56.6]} 7... bxa4 {[%clk 0:03:03.6]} 8. Qxa4+ {[%clk
0:02:55.8]} 8... Bd7 {[%clk 0:03:05.1]} 9. Qb3 {[%clk 0:02:56.5]} 9... e6 {[%clk
0:03:06.3]} 10. Ba5 {[%clk 0:02:55.3]} 10... Qc8 {[%clk 0:03:02.4]} 11. Nc3
{[%clk 0:02:56.4]} 11... Nc6 {[%clk 0:03:02.6]} 12. Ne5 {[%clk 0:02:48.8]} 12...
Bd6 {[%clk 0:02:59.3]} 13. Nxc6 {[%clk 0:02:43.8]} 13... Bxc6 {[%clk 0:02:59.6]}
14. Be2 {[%clk 0:02:41.1]} 14... O-O {[%clk 0:02:59.5]} 15. O-O {[%clk
0:02:41.7]} 15... Qd7 {[%clk 0:03:01.1]} 16. Na4 {[%clk 0:02:38]} 16... Rfb8
{[%clk 0:03:02.9]} 17. Nb6 {[%clk 0:02:26.2]} 17... Qe8 {[%clk 0:03:01.4]} 18.
Qc2 {[%clk 0:02:23.8]} 18... Ra7 {[%clk 0:03:01.7]} 19. Rfc1 {[%clk 0:02:17.2]}
19... Bb5 {[%clk 0:02:57.3]} 20. Bxb5 {[%clk 0:02:08.4]} 20... Qxb5 {[%clk
0:02:59]} 21. Nc8 {[%clk 0:02:08.2]} 21... Rd7 {[%clk 0:02:58.3]} 22. Nxd6
{[%clk 0:02:07.4]} 22... Rxd6 {[%clk 0:03:00.1]} 23. Bc7 {[%clk 0:02:03.4]}
23... Rc8 {[%clk 0:03:00.7]} 24. Bxd6 {[%clk 0:01:56.5]} 24... Rxc2 {[%clk
0:03:02.4]} 25. Rxc2 {[%clk 0:01:57.7]} 25... h6 {[%clk 0:03:03.8]} 26. Be5
{[%clk 0:01:50]} 26... Ne4 {[%clk 0:03:03.9]} 27. f3 {[%clk 0:01:43.5]} 27...
Ng5 {[%clk 0:03:04.6]} 28. Kf2 {[%clk 0:01:32]} 28... f6 {[%clk 0:03:03.5]} 29.
Bd6 {[%clk 0:01:26.5]} 29... Kh7 {[%clk 0:03:02.4]} 30. h4 {[%clk 0:01:22.9]}
30... Nf7 {[%clk 0:03:03.2]} 31. Ba3 {[%clk 0:01:24.2]} 31... e5 {[%clk
0:03:03.8]} 32. Rd1 {[%clk 0:01:15.5]} 32... e4 {[%clk 0:03:03.4]} 33. Rc7
{[%clk 0:01:07.9]} 33... Kg8 {[%clk 0:02:59.4]} 34. f4 {[%clk 0:00:46.6]} 34...
h5 {[%clk 0:02:58.5]} 35. Rc3 {[%clk 0:00:32.5]} 35... Nh6 {[%clk 0:02:58.9]}
36. Rd2 {[%clk 0:00:32.6]} 36... Ng4+ {[%clk 0:03:00.1]} 37. Kg1 {[%clk
0:00:32.2]} 37... Qa5 {[%clk 0:02:59]} 38. Rdc2 {[%clk 0:00:25.7]} 38... Kh7
{[%clk 0:02:59.6]} 39. Rd2 {[%clk 0:00:26.6]} 39... Qa4 {[%clk 0:02:51.6]} 40.
Kf1 {[%clk 0:00:17.3]} 40... Qb5+ {[%clk 0:02:50.5]} 41. Kg1 {[%clk 0:00:18.1]}
41... Nh6 {[%clk 0:02:51.8]} 42. Rdc2 {[%clk 0:00:18.9]} 42... Qd7 {[%clk
0:02:52.8]} 43. Rd2 {[%clk 0:00:19.6]} 43... Qg4 {[%clk 0:02:54.6]} 44. Rc5
{[%clk 0:00:19.2]} 44... Nf5 {[%clk 0:02:56.4]} 45. Rxd5 {[%clk 0:00:20.1]}
45... Nxe3 {[%clk 0:02:57.2]} 46. Ra5 {[%clk 0:00:17.3]} 46... Qxh4 {[%clk
0:02:58.2]} 47. Rf2 {[%clk 0:00:17.4]} 47... Ng4 {[%clk 0:02:58.7]} 0-1

[Event "*** Titled Tuesday Blitz"]
[Site "Chess.com"]
[Date "2018.04.03"]
[Round "6"]
[White "RojonR"]
[Black "nubair1198"]
[Result "0-1"]
[WhiteElo "2394"]
[BlackElo "2570"]
[TimeControl "180+2"]
[EndTime "14:17:23 PDT"]
[Termination "nubair1198 won on time"]

1. e4 {[%clk 0:03:01.9]} 1... c6 {[%clk 0:03:01.1]} 2. Nc3 {[%clk 0:03:02.4]}
2... d5 {[%clk 0:03:03]} 3. Qe2 {[%clk 0:03:03.6]} 3... d4 {[%clk 0:03:03.8]} 4.
Nd1 {[%clk 0:03:04.3]} 4... c5 {[%clk 0:03:05.7]} 5. g3 {[%clk 0:03:05]} 5...
Nc6 {[%clk 0:03:07.1]} 6. d3 {[%clk 0:03:05.3]} 6... e5 {[%clk 0:03:09]} 7. f4
{[%clk 0:03:03.9]} 7... exf4 {[%clk 0:03:06.9]} 8. gxf4 {[%clk 0:03:03.8]} 8...
Qh4+ {[%clk 0:03:07.2]} 9. Nf2 {[%clk 0:02:51.9]} 9... Nf6 {[%clk 0:03:06.7]}
10. Nf3 {[%clk 0:02:48.2]} 10... Qh5 {[%clk 0:03:07.9]} 11. Rg1 {[%clk
0:02:33.2]} 11... Ng4 {[%clk 0:02:59.2]} 12. h3 {[%clk 0:02:28.8]} 12... Nxf2
{[%clk 0:02:59.7]} 13. Qxf2 {[%clk 0:02:28.1]} 13... Be7 {[%clk 0:02:33.7]} 14.
Rxg7 {[%clk 0:02:08.7]} 14... Nb4 {[%clk 0:02:30.8]} 15. Bg2 {[%clk 0:01:34.6]}
15... Bxh3 {[%clk 0:02:28.2]} 16. Bxh3 {[%clk 0:01:29.6]} 16... Qxh3 {[%clk
0:02:30.1]} 17. Kd1 {[%clk 0:01:06.9]} 17... O-O-O {[%clk 0:02:29.5]} 18. a3
{[%clk 0:00:57.6]} 18... Nc6 {[%clk 0:01:50.9]} 19. Bd2 {[%clk 0:00:54]} 19...
Rhg8 {[%clk 0:01:50.1]} 20. Rxg8 {[%clk 0:00:41]} 20... Rxg8 {[%clk 0:01:52]}
21. Ng5 {[%clk 0:00:39.7]} 21... Qh1+ {[%clk 0:01:22]} 22. Qe1 {[%clk
0:00:39.8]} 22... Qh2 {[%clk 0:01:19.6]} 23. c4 {[%clk 0:00:24.5]} 23... h6
{[%clk 0:01:16.1]} 24. Nf3 {[%clk 0:00:21.6]} 24... Qh3 {[%clk 0:01:13.8]} 25.
Qe2 {[%clk 0:00:10.5]} 25... Rg3 {[%clk 0:01:12]} 26. Qf1 {[%clk 0:00:11.7]}
26... Qxf1+ {[%clk 0:01:12.3]} 0-1

[Event "*** Titled Tuesday Blitz"]
[Site "Chess.com"]
[Date "2018.04.03"]
[Round "6"]
[White "Kimster98"]
[Black "Noukii"]
[Result "1-0"]
[WhiteElo "2606"]
[BlackElo "2603"]
[TimeControl "180+2"]
[EndTime "14:17:41 PDT"]
[Termination "Kimster98 won by resignation"]

1. Nf3 {[%clk 0:03:01.9]} 1... d5 {[%clk 0:02:31.9]} 2. d4 {[%clk 0:03:02.2]}
2... Nf6 {[%clk 0:02:31.4]} 3. c4 {[%clk 0:03:03.8]} 3... c6 {[%clk 0:02:31.8]}
4. Nc3 {[%clk 0:03:05.3]} 4... e6 {[%clk 0:02:32.9]} 5. g3 {[%clk 0:03:05.2]}
5... dxc4 {[%clk 0:02:30.4]} 6. Bg2 {[%clk 0:03:06]} 6... b5 {[%clk 0:02:31.9]}
7. Ne5 {[%clk 0:03:06.5]} 7... Nd5 {[%clk 0:02:24.3]} 8. e4 {[%clk 0:03:05.1]}
8... Nxc3 {[%clk 0:02:22.2]} 9. bxc3 {[%clk 0:03:07]} 9... Bb7 {[%clk
0:02:23.6]} 10. Qh5 {[%clk 0:03:07.2]} 10... g6 {[%clk 0:02:21.2]} 11. Nxg6
{[%clk 0:03:07.2]} 11... hxg6 {[%clk 0:02:17.8]} 12. Qxh8 {[%clk 0:03:08]} 12...
Nd7 {[%clk 0:02:18.7]} 13. O-O {[%clk 0:02:47.5]} 13... Qa5 {[%clk 0:02:02.9]}
14. Bd2 {[%clk 0:02:38.7]} 14... Qa3 {[%clk 0:01:51.3]} 15. Qh4 {[%clk
0:02:25.8]} 15... Be7 {[%clk 0:01:48.4]} 16. Qf4 {[%clk 0:02:22.7]} 16... Bd6
{[%clk 0:01:36.1]} 17. Qe3 {[%clk 0:02:22.9]} 17... O-O-O {[%clk 0:01:31.2]} 18.
Bc1 {[%clk 0:02:22.8]} 18... Qa4 {[%clk 0:01:31.9]} 19. Qe2 {[%clk 0:02:07.1]}
19... e5 {[%clk 0:01:27.1]} 20. Qd1 {[%clk 0:02:03.3]} 20... Qa5 {[%clk
0:01:21]} 21. Qc2 {[%clk 0:01:55.3]} 21... exd4 {[%clk 0:00:47.2]} 22. cxd4
{[%clk 0:01:57.2]} 22... c5 {[%clk 0:00:48.6]} 23. Be3 {[%clk 0:01:54.6]} 23...
cxd4 {[%clk 0:00:47.4]} 24. Bxd4 {[%clk 0:01:56.5]} 24... Ne5 {[%clk 0:00:45.8]}
25. Rfd1 {[%clk 0:01:51.2]} 25... Nc6 {[%clk 0:00:41.3]} 26. Bf6 {[%clk
0:01:46.4]} 26... Be7 {[%clk 0:00:40.2]} 27. Rxd8+ {[%clk 0:01:46.5]} 27... Qxd8
{[%clk 0:00:42]} 28. Bxe7 {[%clk 0:01:46.4]} 28... Qxe7 {[%clk 0:00:42.5]} 29.
a4 {[%clk 0:01:47.6]} 29... a6 {[%clk 0:00:38.8]} 30. axb5 {[%clk 0:01:48.6]}
30... axb5 {[%clk 0:00:40.7]} 31. Rb1 {[%clk 0:01:40.5]} 31... Qc5 {[%clk
0:00:41.5]} 32. Rd1 {[%clk 0:01:20.4]} 32... b4 {[%clk 0:00:38.6]} 33. Rd5
{[%clk 0:01:18.8]} 33... Qa7 {[%clk 0:00:21.7]} 34. Qxc4 {[%clk 0:01:15]} 34...
Qa1+ {[%clk 0:00:22.7]} 35. Qf1 {[%clk 0:01:14.8]} 35... Kb8 {[%clk 0:00:24.6]}
36. Qxa1 {[%clk 0:01:14.6]} 1-0